bitfinex-derivatives/quotes_ETHF0:USTF0_20250627
["timestamp","ask_amount","ask_price","bid_price","bid_amount"]
[1751028109598,0.81863,2442.3,2442.2,35.8378]
[1751028110100,0.81863,2442.3,2442.2,10.1158]
[1751028110398,0.81863,2442.3,2442.2,28.9278]
[1751028110802,0.81876,2442.0,2441.9,10.1158]
[1751028111002,0.81876,2442.0,2441.9,35.8358]
[1751028111506,0.81876,2442.0,2441.9,35.8338]
[1751028111997,0.81876,2442.0,2441.9,25.718]
[1751028112406,0.8188,2441.8,2441.7,7.5859]
[1751028112599,0.8188,2441.8,2441.7,32.627]
[1751028113604,0.81883,2441.7,2441.6,6.47099529]
[1751028113806,0.81883,2441.7,2441.6,4.02667]
[1751028114003,0.81883,2441.7,2441.6,35.8308]
[1751028114202,0.81882,2441.8,2441.6,36.64965]
[1751028114600,0.81883,2441.7,2441.6,36.64965]
[1751028114799,0.81883,2441.7,2441.6,35.8308]
[1751028114995,0.81883,2441.7,2441.6,36.64967]
[1751028115702,0.81883,2441.7,2441.6,4.02667]
[1751028115907,0.81883,2441.7,2441.6,10.93567]
[1751028116205,0.81883,2441.7,2441.6,36.64767]
[1751028116707,0.81883,2441.7,2441.6,10.1168]
[1751028116901,0.81883,2441.7,2441.6,35.8288]
[1751028117600,0.81883,2441.7,2441.6,35.8278]
[1751028118102,1.371,2442.0,2441.6,35.8278]
[1751028118305,1.3348,2442.1,2441.6,35.8278]
[1751028118505,0.8188,2441.9,2441.8,0.81879]
[1751028118705,0.8188,2441.9,2441.8,26.52679]
[1751028119007,0.8188,2441.9,2441.8,25.708]
[1751028119202,0.8188,2441.9,2441.8,26.5268]
[1751028119708,0.81876,2442.0,2441.9,0.81876]
[1751028120504,0.81877,2441.9,2441.8,26.52678]
[1751028121307,0.81877,2441.9,2441.8,25.708]
[1751028121509,0.6566,2442.1,2441.8,25.703]
[1751028121901,0.81875,2442.0,2441.9,0.81875]
[1751028122505,0.6566,2442.1,2442.0,0.81873]
[1751028122703,0.81859,2442.5,2442.4,0.81858]
[1751028122902,0.8186,2442.4,2442.3,26.51861]
[1751028123102,1.84222578,2442.4,2442.3,26.51761]
[1751028123302,1.02362578,2442.4,2442.3,26.51761]
[1751028123604,1.84222578,2442.4,2442.3,26.51761]
[1751028124301,1.84222578,2442.4,2442.3,25.699]
[1751028124705,0.81866,2442.3,2442.1,0.81868]
[1751028124913,1.84229578,2442.2,2442.1,7.69068]
[1751028125210,1.02362578,2442.2,2442.1,33.38668]
[1751028125611,1.84229578,2442.2,2442.1,33.38668]
[1751028126016,1.02362578,2442.2,2442.1,33.38668]
[1751028127617,1.02362578,2442.2,2442.1,34.74908]
[1751028129219,1.84229578,2442.2,2442.1,34.7491]
[1751028129411,1.84229578,2442.2,2442.1,32.568]
[1751028129609,3.07030578,2442.2,2441.7,3.2078]
[1751028129917,5.66670744,2442.0,2441.7,3.2078]
[1751028130120,0.8188,2441.8,2441.7,3.2078]
[1751028130514,0.81887,2441.6,2441.5,6.871]
[1751028130818,2.04701,2441.8,2441.4,3.2078]
[1751028130819,0.8189,2441.5,2441.4,3.2078]
[1751028131019,0.8189,2441.5,2441.4,28.8898]
[1751028132514,0.8189,2441.5,2441.4,28.8888]
[1751028132720,8.87450744,2441.7,2441.2,0.6714]
[1751028132914,8.87450744,2441.3,2440.8,3.2078]
[1751028133119,8.87450744,2441.3,2440.8,29.70693]
[1751028133416,3.2078,2441.3,2440.8,30.2605]
[1751028133815,0.8191,2440.9,2440.8,30.2605]
[1751028134010,0.81909,2441.0,2440.8,30.2605]
[1751028134219,0.81909,2441.0,2440.9,25.678]
[1751028134910,0.81905,2441.1,2440.9,26.4971]
[1751028135314,0.81905,2441.1,2441.0,25.676]
[1751028136327,0.8191,2440.9,2440.8,3.2078]
[1751028136619,0.8191,2440.9,2440.8,28.8848]
[1751028136817,0.8191,2440.9,2440.8,3.2078]
[1751028137021,0.8191,2440.9,2440.8,28.8838]
[1751028137218,0.8191,2440.9,2440.8,3.2078]
[1751028137422,0.81914,2440.8,2440.7,3.94979529]
[1751028137617,0.81914,2440.8,2440.7,29.62479529]
[1751028137929,1.3935,2441.0,2440.7,25.675]
[1751028138223,0.81914,2440.8,2440.7,25.675]
[1751028138621,0.81918,2440.7,2440.5,4.73722]
[1751028138820,4.11432,2441.0,2440.6,25.675]
[1751028139315,0.81917,2440.7,2440.6,25.675]
[1751028139518,0.8192,2440.6,2440.5,3.2078]
[1751028139822,0.8192,2440.6,2440.5,28.8818]
[1751028140420,4.11432,2441.0,2440.5,4.02704]
[1751028140628,0.81918,2440.7,2440.5,29.70004]
[1751028140925,0.8192,2440.6,2440.5,29.70004]
[1751028141522,4.11432,2441.0,2440.5,29.70004]
[1751028141523,0.81919,2440.7,2440.5,26.48924]
[1751028141721,0.81913,2440.9,2440.7,0.81915]
[1751028141921,3.8809,2441.0,2440.5,28.8778]
[1751028142220,0.81917,2440.7,2440.6,0.81918]
[1751028142826,0.81916,2440.8,2440.7,0.81917]
[1751028143224,0.81917,2440.7,2440.6,0.81918]
[1751028143424,0.81916,2440.8,2440.7,0.81916]
[1751028143830,1.53953,2440.9,2440.8,0.81914]
[1751028144022,0.81913,2440.9,2440.8,26.48614]
[1751028144327,0.81908,2441.0,2440.9,0.81909]
[1751028144519,0.81908,2441.0,2440.9,0.6723]
[1751028145425,0.8191,2440.9,2440.8,26.48614]
[1751028146628,0.8191,2440.9,2440.6,2.7258]
[1751028146629,0.81917,2440.7,2440.6,0.7107]
[1751028146828,0.81917,2440.7,2440.6,33.2497]
[1751028147122,0.81917,2440.7,2440.6,0.7107]
[1751028147329,0.81917,2440.7,2440.6,26.3737]
[1751028148234,0.81917,2440.7,2440.6,26.3717]
[1751028148830,0.81917,2440.7,2440.6,0.7107]
[1751028149025,0.81917,2440.7,2440.6,1.5299]
[1751028150025,0.7211,2441.1,2440.6,0.7107]
[1751028150235,0.81912,2440.9,2440.8,0.81913]
[1751028151228,0.7211,2441.1,2440.6,2.0883]
[1751028151229,0.81917,2440.7,2440.6,2.0883]
[1751028151428,0.81917,2440.7,2440.6,26.3677]
[1751028151634,0.8192,2440.6,2440.5,3.2078]
[1751028151833,0.8192,2440.6,2440.5,28.8638]
[1751028152526,0.8192,2440.6,2440.5,3.2078]
[1751028154532,0.81924,2440.5,2440.4,26.3672]
[1751028155031,0.81923,2440.6,2440.4,26.3672]
[1751028155237,0.6895,2440.8,2440.5,3.2078]
[1751028155433,0.81911,2440.9,2440.8,0.81911]
[1751028155632,0.81909,2441.0,2440.9,0.81908]
[1751028155835,0.81909,2441.0,2440.9,2.94638]
[1751028156527,0.81905,2441.1,2441.0,0.81905]
[1751028156727,0.81905,2441.1,2441.0,2.24335]
[1751028156935,0.81905,2441.1,2441.0,1.4243]
[1751028157334,0.81907,2441.0,2440.9,3.9108]
[1751028159337,0.81907,2441.0,2440.9,3.2078]
[1751028161435,5.66670744,2441.1,2440.7,0.7095]
[1751028161642,6.48584744,2440.8,2440.7,7.5505]
[1751028161838,6.48584744,2440.8,2440.7,33.1895]
[1751028162238,6.48584744,2440.8,2440.7,26.3475]
[1751028162540,6.48584744,2440.8,2440.7,25.638]
[1751028162840,0.81917,2440.7,2440.6,3.2078]
[1751028163237,0.81917,2440.7,2440.6,28.8438]
[1751028163741,0.81917,2440.7,2440.6,3.2078]
[1751028164040,0.81917,2440.7,2440.6,28.8418]
[1751028164941,0.81917,2440.7,2440.6,3.2078]
[1751028166546,1.84390134,2440.7,2440.6,3.2078]
[1751028167039,2.048,2440.6,2439.9,3.2578916]
[1751028167241,5.66670744,2440.0,2439.7,4.6671916]
[1751028167446,5.66670744,2440.0,2439.7,30.2951916]
[1751028167447,0.81947,2439.8,2439.7,30.2951916]
[1751028167643,0.81946,2439.9,2439.7,31.1146916]
[1751028167941,0.7197,2440.1,2439.7,32.5635716]
[1751028168134,0.81946,2439.9,2439.8,1.4489]
[1751028169041,0.81943,2439.9,2439.8,2.26835]
[1751028169348,3.2078,2440.5,2439.8,6.4489]
[1751028169534,0.81939,2440.1,2440.0,3.2078]
[1751028169736,0.81939,2440.1,2440.0,30.2847]
[1751028169936,0.81939,2440.1,2440.0,31.1041]
[1751028170138,1.84440677,2440.1,2440.0,30.2847]
[1751028170338,1.84440677,2440.1,2440.0,3.2078]
[1751028170339,6.48609744,2440.1,2440.0,3.2078]
[1751028170539,0.81947,2439.8,2439.7,1.4093]
[1751028171143,0.81947,2439.8,2439.7,0.6952]
[1751028171446,0.81947,2439.8,2439.7,26.3202]
[1751028172142,0.81947,2439.8,2439.7,0.6952]
[1751028172340,0.8195,2439.7,2439.6,35.6748]
[1751028172940,0.8195,2439.7,2439.6,25.625]
[1751028172941,5.66670744,2439.7,2439.6,25.625]
[1751028173140,0.8196,2439.4,2439.3,3.901]
[1751028173550,0.8196,2439.4,2439.3,36.366]
[1751028173948,0.8196,2439.4,2439.3,3.901]
[1751028174149,0.8196,2439.4,2439.3,36.366]
[1751028175049,0.8196,2439.4,2439.3,3.901]
[1751028175255,0.8196,2439.4,2439.3,28.8298]
[1751028175447,0.7111,2439.6,2439.3,28.8298]
[1751028175647,0.8196,2439.4,2439.3,31.09232]
[1751028175848,0.8196,2439.4,2439.3,30.2727]
[1751028176048,0.8196,2439.4,2439.3,4.6507]
[1751028176249,0.8196,2439.4,2439.3,30.2717]
[1751028176453,0.7111,2439.6,2439.3,30.2717]
[1751028176649,0.8196,2439.4,2439.3,28.8288]
[1751028177049,6.48630744,2439.4,2439.3,3.2078]
[1751028177352,0.8197,2439.2,2439.0,10.87052]
[1751028177552,6.48640744,2439.1,2439.0,10.0508]
[1751028177757,0.8197,2439.1,2439.0,35.6688]
[1751028178150,1.50189,2439.2,2439.0,3.2078]
[1751028178350,0.81965,2439.3,2439.0,3.2078]
[1751028178557,0.81964,2439.3,2439.1,1.3732]
[1751028178857,0.81967,2439.2,2439.1,1.3732]
[1751028179353,0.81966,2439.3,2439.2,0.81967]
[1751028179554,5.66670744,2439.4,2439.0,3.2078]
[1751028179748,5.66670744,2439.4,2438.1,3.2578916]
[1751028179749,0.81965,2439.3,2439.1,0.81968]
[1751028179943,1.3986,2439.5,2439.1,0.81968]
[1751028180149,0.81966,2439.3,2439.1,0.81968]
[1751028180450,5.25639,2439.9,2439.2,6.844]
[1751028180755,1.84014797,2439.8,2439.6,0.81951]
[1751028181060,0.81953,2439.6,2439.5,0.81955]
[1751028181252,0.81952,2439.7,2439.5,0.81955]
[1751028181447,3.2078,2439.9,2439.6,25.618]
[1751028181653,0.8195,2439.7,2439.6,26.43753]
[1751028181950,0.81949,2439.8,2439.6,26.43753]
[1751028182256,0.8195,2439.7,2439.6,25.618]
[1751028183450,3.2078,2439.9,2439.6,25.618]
[1751028183659,0.7274,2440.0,2439.6,30.8349]
[1751028183854,3.2078,2440.2,2440.0,0.8194]
[1751028184051,1.01995102,2440.1,2440.0,0.8194]
[1751028184356,1.01995102,2440.1,2439.6,30.8319]
[1751028184555,0.81937,2440.1,2440.0,0.81937]
[1751028184756,1.8400829,2440.1,2440.0,0.81937]
[1751028184955,1.0207129,2440.1,2439.6,5.2169]
[1751028185151,0.81953,2439.6,2439.5,6.814]
[1751028185349,5.66670744,2439.7,2439.3,3.8902]
[1751028185657,0.81969,2439.2,2439.1,25.613]
[1751028185854,0.81965,2439.3,2439.1,0.81969]
[1751028186055,0.81967,2439.2,2439.1,25.612]
[1751028186449,0.6654,2439.5,2439.0,10.0218]
[1751028186450,0.8197,2439.1,2439.0,10.0218]
[1751028186652,0.8197,2439.1,2439.0,35.6338]
[1751028187053,0.8197,2439.1,2439.0,35.6328]
[1751028187454,0.8197,2439.1,2439.0,10.0218]
[1751028187651,0.8197,2439.1,2439.0,3.2078]
[1751028187856,0.81974,2439.0,2438.9,25.61]
[1751028188357,0.81974,2439.0,2438.8,7.6338]
[1751028188358,0.81977,2438.9,2438.8,0.8198]
[1751028188656,0.81977,2438.9,2438.8,32.423]
[1751028189257,0.8198,2438.8,2438.7,52.3938]
[1751028189454,0.8198,2438.8,2438.7,84.8158]
[1751028189856,0.8198,2438.8,2438.7,52.3938]
[1751028190158,0.81984,2438.7,2438.6,7.517]
[1751028190362,0.8199,2438.5,2438.4,28.8158]
[1751028190554,0.81989,2438.6,2438.4,29.63571]
[1751028190755,6.34220744,2438.7,2438.5,0.8199]
[1751028190756,0.6755,2438.7,2438.5,0.8199]
[1751028190955,5.66670744,2439.1,2438.4,28.8158]
[1751028191252,0.8198,2438.8,2438.7,3.2078]
[1751028191453,0.81979,2438.9,2438.7,29.63464]
[1751028191653,0.81979,2438.9,2438.8,0.8198]
[1751028191857,0.6755,2439.0,2438.9,0.81977]
[1751028192160,3.2078,2439.3,2438.8,2.2321]
[1751028192462,0.81972,2439.1,2438.9,0.81977]
[1751028193351,0.81973,2439.0,2438.9,0.81974]
[1751028193554,0.81973,2439.0,2438.8,1.4123]
[1751028193752,0.6788,2439.2,2438.8,1.4123]
[1751028193753,0.81973,2439.1,2438.8,1.4123]
[1751028193961,0.6788,2439.2,2438.8,1.4123]
[1751028194260,1.49849,2439.2,2439.0,0.81972]
[1751028194765,0.8197,2439.1,2439.0,0.81972]
[1751028194958,0.8197,2439.1,2438.9,0.81975]
[1751028195158,0.81973,2439.1,2438.9,0.81975]
[1751028195359,0.81972,2439.1,2439.0,0.81972]
[1751028195659,0.81972,2439.1,2438.8,1.4123]
[1751028195660,0.6788,2439.2,2438.8,2.23208]
[1751028195864,0.81972,2439.1,2439.0,0.81973]
[1751028196356,1.49849,2439.2,2439.1,0.8197]
[1751028196562,1.49849,2439.2,2439.0,26.42671]
[1751028196762,0.6788,2439.2,2439.1,0.8197]
[1751028197155,1.49847,2439.2,2439.1,0.8197]
[1751028197466,0.6788,2439.2,2439.1,0.8197]
[1751028197762,3.2078,2439.3,2439.2,0.81967]
[1751028197968,4.02743,2439.3,2439.2,0.81967]
[1751028198265,0.81967,2439.2,2439.1,2.24039]
[1751028198465,0.81967,2439.2,2439.1,27.84239]
[1751028198759,4.02746,2439.3,2439.2,0.81967]
[1751028198961,0.81966,2439.3,2439.2,0.81967]
[1751028199261,0.81957,2439.5,2439.4,0.81958]
[1751028199464,8.87450744,2439.9,2439.2,5.0]
[1751028199465,0.81962,2439.4,2439.2,1.54184]
[1751028199668,0.81962,2439.4,2439.3,0.81963]
[1751028199871,0.81962,2439.4,2439.3,26.42063]
[1751028200164,0.81962,2439.4,2439.2,1.54185]
[1751028200370,0.81963,2439.3,2439.2,8.35687]
[1751028200574,0.81963,2439.3,2439.2,33.95687]
[1751028201172,4.02738,2439.5,2439.4,0.8196]
[1751028201473,0.81962,2439.4,2439.3,0.81963]
[1751028201971,0.81959,2439.5,2439.4,0.8196]
[1751028202172,1.02603456,2439.5,2439.4,0.8196]
[1751028202372,1.84582266,2439.5,2439.3,5.3473]
[1751028202572,0.8196,2439.4,2439.3,6.16691]
[1751028202971,0.8196,2439.4,2439.3,3.2078]
[1751028203265,6.48630744,2439.4,2439.3,32.412]
[1751028203668,6.48630744,2439.4,2439.3,6.815]
[1751028204666,0.81963,2439.3,2439.2,26.41467]
[1751028204865,0.6797,2439.8,2439.3,0.81963]
[1751028205066,9.76446744,2439.6,2439.0,3.2078]
[1751028205268,9.76446744,2439.6,2439.3,6.815]
[1751028205269,0.8196,2439.4,2439.3,6.815]
[1751028205481,0.8196,2439.4,2439.3,7.63463]
[1751028205664,0.8196,2439.5,2439.4,0.81958]
[1751028205871,0.6797,2439.8,2439.4,25.594]
[1751028206069,0.6797,2439.8,2439.5,2.16265]
[1751028206070,0.81953,2439.6,2439.5,2.16265]
[1751028206276,1.84579769,2439.6,2439.5,1.3431]
[1751028206475,1.02626769,2439.6,2439.5,2.16267]
[1751028207984,0.81945,2439.9,2439.5,1.3431]
[1751028208185,1.02632015,2439.8,2439.7,0.8195]
[1751028208373,1.02632015,2439.8,2439.7,34.6831]
[1751028208573,1.02632015,2439.8,2439.7,2.2771]
[1751028208775,1.84579015,2439.8,2439.7,32.406]
[1751028209280,1.84579015,2439.8,2439.7,33.2255]
[1751028209470,1.02632015,2439.8,2439.7,33.2255]
[1751028209676,1.02632015,2439.8,2439.7,34.6831]
[1751028209976,4.69382,2440.3,2439.7,33.8636]
[1751028210290,4.69382,2440.3,2440.2,0.81933]
[1751028210481,0.81933,2440.2,2440.1,0.81934]
[1751028210685,4.69382,2440.3,2440.2,0.81933]
[1751028210877,0.81933,2440.2,2440.1,33.22234]
[1751028211079,1.02586973,2440.2,2440.1,33.22234]
[1751028211282,1.84519973,2440.2,2440.1,33.22234]
[1751028211480,1.84519973,2440.2,2440.1,34.61664]
[1751028211782,1.02586973,2440.2,2440.1,34.61664]
[1751028212375,8.87450744,2440.6,2440.1,33.7973]
[1751028212376,0.81925,2440.5,2440.1,33.7973]
[1751028212575,1.02547615,2440.4,2440.3,0.8193]
[1751028213483,1.02547615,2440.4,2440.1,33.7973]
[1751028213783,0.81929,2440.4,2440.3,0.8193]
[1751028213985,1.02512615,2440.4,2440.3,0.81927]
[1751028214578,1.02512615,2440.4,2440.3,2.22917]
[1751028214879,7.71453744,2440.8,2440.3,1.4099]
[1751028215076,0.81926,2440.4,2440.3,1.4099]
[1751028215278,0.81926,2440.4,2440.3,32.375]
[1751028215480,0.8193,2440.3,2440.2,3.2078]
[1751028215784,0.8194,2440.0,2439.9,49.186]
[1751028215981,0.8194,2440.0,2439.9,81.56]
[1751028217082,0.8194,2440.0,2439.9,32.372]
[1751028218878,0.81943,2439.9,2439.8,3.2078]
[1751028219188,0.81943,2439.9,2439.8,35.5778]
[1751028219888,0.81943,2439.9,2439.8,10.0008]
[1751028220081,0.8195,2439.7,2439.6,7.5]
[1751028220283,0.8195,2439.7,2439.6,33.075]
[1751028220775,0.8195,2439.7,2439.6,33.074]
[1751028221991,0.8195,2439.7,2439.6,7.5]
[1751028222285,0.81954,2439.6,2439.5,10.0008]
[1751028222482,0.81954,2439.6,2439.5,36.39337]
[1751028223889,0.81953,2439.7,2439.6,0.81953]
[1751028224084,5.66670744,2440.1,2439.5,35.5738]
[1751028224286,2.04851,2440.0,2439.6,2.1255]
[1751028224487,0.81947,2439.8,2439.7,25.571]
[1751028224688,0.8195,2439.7,2439.6,2.94503]
[1751028224886,0.8195,2439.7,2439.6,35.30803]
[1751028225391,0.8195,2439.7,2439.6,33.0487]
[1751028226188,0.81954,2439.6,2439.5,4.02736]
[1751028226390,0.81954,2439.6,2439.5,36.39136]
[1751028227096,0.81954,2439.6,2439.5,4.02736]
[1751028227291,0.81954,2439.6,2439.5,3.2078]
[1751028227497,0.81953,2439.7,2439.6,0.81952]
[1751028227788,0.81953,2439.7,2439.6,26.38752]
[1751028228294,0.6571,2440.1,2439.6,25.568]
[1751028228492,1.85462803,2440.0,2439.8,0.81945]
[1751028228698,0.81943,2440.0,2439.9,25.567]
[1751028228997,0.81943,2440.0,2439.9,26.38644]
[1751028229595,0.81943,2440.0,2439.9,25.567]
[1751028229900,1.85464751,2440.0,2439.9,25.567]
[1751028230801,0.81947,2439.8,2439.7,0.704]
[1751028230992,0.81947,2439.8,2439.7,33.065]
[1751028232098,0.81945,2439.9,2439.7,33.065]
[1751028232502,0.81947,2439.8,2439.7,33.065]
[1751028233699,1.85539418,2439.8,2439.7,33.065]
[1751028233904,1.03592418,2439.8,2439.7,33.065]
[1751028234200,1.03592418,2439.8,2439.7,33.8845]
[1751028234201,1.85539418,2439.8,2439.7,33.8845]
[1751028234702,1.03592418,2439.8,2439.7,33.8845]
[1751028235097,0.81942,2440.0,2439.9,0.81944]
[1751028235298,1.85563985,2440.0,2439.9,26.38244]
[1751028235496,1.85563985,2440.0,2439.9,25.563]
[1751028235800,1.03621985,2440.0,2439.9,26.38244]
[1751028236406,1.85561985,2440.0,2439.9,26.38244]
[1751028237303,1.85561985,2440.0,2439.7,6.794]
[1751028237304,0.81947,2439.8,2439.7,6.794]
[1751028237505,0.81947,2439.8,2439.7,32.354]
[1751028238207,1.85620396,2439.8,2439.7,32.354]
[1751028238611,0.81954,2439.6,2439.5,4.72046]
[1751028238802,0.7091,2439.7,2439.5,35.5598]
[1751028239108,1.52863,2439.7,2439.6,0.81954]
[1751028239607,0.81954,2439.6,2439.5,10.82135]
[1751028239810,0.81954,2439.6,2439.5,36.37935]
[1751028240105,1.52863,2439.7,2439.5,35.5598]
[1751028240313,0.81954,2439.6,2439.5,10.0018]
[1751028240506,1.52863,2439.7,2439.5,35.5588]
[1751028240710,3.2078,2440.0,2439.5,35.5588]
[1751028240900,0.81948,2439.8,2439.7,0.81949]
[1751028241102,1.03679335,2439.8,2439.7,26.37649]
[1751028241409,1.03679335,2439.8,2439.7,27.0924]
[1751028241410,1.03678341,2439.8,2439.7,27.0924]
[1751028241602,8.87450744,2440.3,2439.7,27.0924]
[1751028241603,0.81937,2440.1,2440.0,0.8194]
[1751028241802,1.85622002,2440.1,2440.0,0.8194]
[1751028242707,0.8194,2440.0,2439.9,26.37541]
[1751028242902,1.03685002,2440.0,2439.9,27.76031]
[1751028243713,1.03685002,2440.0,2439.9,34.53731]
[1751028244509,0.81939,2440.1,2440.0,0.8194]
[1751028244808,1.85657441,2440.1,2440.0,0.8194]
[1751028245010,1.85657441,2440.1,2439.9,33.7179]
[1751028245011,0.8194,2440.0,2439.9,34.53731]
[1751028245213,1.03718441,2440.0,2439.9,34.53731]
[1751028245411,1.85658441,2440.0,2439.9,34.53731]
[1751028246111,1.03718441,2440.0,2439.9,34.53731]
[1751028246511,1.85658441,2440.0,2439.9,34.53734]
[1751028247711,0.81944,2439.9,2439.8,3.9291]
[1751028247913,1.49874,2439.9,2439.8,36.2561]
[1751028248913,0.81943,2440.0,2439.8,36.2561]
[1751028249213,0.81944,2439.9,2439.8,38.53245]
[1751028250713,0.81942,2440.0,2439.9,0.81942]
[1751028250910,1.85711188,2440.1,2440.0,0.81939]
[1751028251107,1.85711188,2440.1,2440.0,26.36439]
[1751028251307,1.85711188,2440.1,2440.0,25.545]
[1751028252312,1.85711188,2440.1,2440.0,26.3644]
[1751028252708,1.03772188,2440.1,2440.0,26.3644]
[1751028252910,1.85709188,2440.1,2440.0,26.3644]
[1751028253103,1.03772188,2440.1,2440.0,26.3644]
[1751028254511,1.03772188,2440.1,2440.0,27.7224]
[1751028254814,0.81929,2440.4,2440.3,0.8193]
[1751028255008,1.85635608,2440.4,2440.3,25.541]
[1751028257817,0.8194,2440.0,2439.9,6.777]
[1751028258114,0.8194,2440.0,2439.9,32.313]
[1751028258315,1.85605973,2440.0,2439.9,32.313]
[1751028258612,0.81944,2439.9,2439.8,3.9291]
[1751028258812,0.81944,2439.9,2439.8,3.2078]
[1751028259017,0.81954,2439.6,2439.5,9.9848]
[1751028259218,0.81954,2439.6,2439.5,35.5198]
[1751028259513,0.81954,2439.6,2439.5,35.5188]
[1751028259905,0.81954,2439.6,2439.5,3.2078]
[1751028260105,0.81954,2439.6,2439.5,35.5178]
[1751028260913,1.52943,2439.7,2439.5,35.5178]
[1751028261127,0.81954,2439.6,2439.5,35.5178]
[1751028261309,0.81954,2439.6,2439.5,36.33735]
[1751028261919,0.81954,2439.6,2439.5,35.5178]
[1751028262415,0.81954,2439.6,2439.5,36.33737]
[1751028262825,3.9177,2440.0,2439.5,35.5178]
[1751028263119,0.81952,2439.7,2439.5,36.33735]
[1751028263418,3.9177,2440.0,2439.5,35.5178]
[1751028263616,1.0362835,2439.9,2439.7,0.81949]
[1751028263811,0.81944,2439.9,2439.8,25.531]
[1751028264010,1.85574314,2439.9,2439.8,25.531]
[1751028264520,1.03630314,2439.9,2439.8,26.35047]
[1751028264814,1.85574314,2439.9,2439.8,26.35047]
[1751028265512,1.85574314,2439.9,2439.8,25.531]
[1751028266622,0.81954,2439.6,2439.5,3.2078]
[1751028266919,1.85599663,2439.6,2439.5,28.7358]
[1751028267116,0.81957,2439.5,2439.4,6.777]
[1751028267311,2.55472663,2439.5,2439.4,32.304]
[1751028268418,0.81964,2439.3,2439.2,49.182]
[1751028268622,0.81967,2439.2,2439.1,9.9848]
[1751028268918,0.81967,2439.2,2439.1,3.2078]
[1751028269120,0.81967,2439.2,2439.1,35.5108]
[1751028270325,0.81967,2439.2,2439.1,35.5098]
[1751028270709,10.20780989,2439.4,2439.0,6.778]
[1751028271020,0.81967,2439.2,2439.1,25.527]
[1751028272019,0.8197,2439.1,2439.0,6.778]
[1751028272222,1.5193,2439.1,2439.0,32.303]
[1751028274123,1.5193,2439.1,2439.0,6.778]
[1751028274324,1.5193,2439.1,2439.0,32.302]
[1751028274725,0.81977,2438.9,2438.8,3.9278]
[1751028275023,0.81977,2438.9,2438.8,37.02961]
[1751028275423,0.81977,2438.9,2438.8,36.2098]
[1751028275922,0.81977,2438.9,2438.8,10.6868]
[1751028276122,0.81977,2438.9,2438.8,35.4888]
[1751028277121,0.81977,2438.9,2438.8,9.9668]
[1751028277328,0.81987,2438.6,2438.5,6.759]
[1751028277830,0.81987,2438.6,2438.5,33.10091]
[1751028278023,0.81984,2438.8,2438.5,32.281]
[1751028278233,0.81984,2438.8,2438.7,4.02764]
[1751028278421,1.50729,2438.9,2438.8,0.81981]
[1751028278725,0.81981,2438.8,2438.7,3.2078]
[1751028278920,0.81981,2438.8,2438.7,35.4878]
[1751028280022,0.81981,2438.8,2438.7,37.74944]
[1751028280222,3.2078,2439.3,2438.7,36.9296]
[1751028280424,0.81973,2439.1,2439.0,0.81974]
[1751028280625,0.81973,2439.1,2439.0,26.34074]
[1751028280921,0.81973,2439.1,2439.0,25.521]
[1751028282626,0.81973,2439.1,2439.0,26.34074]
[1751028282926,0.81973,2439.1,2439.0,27.5109]
[1751028284132,0.81965,2439.3,2439.2,0.81965]
[1751028284333,0.81965,2439.3,2439.2,7.57965]
[1751028284731,0.81963,2439.4,2439.3,0.81963]
[1751028285031,0.81963,2439.4,2439.3,26.8446]
[1751028286235,0.81963,2439.4,2439.3,27.66424]
[1751028286526,0.81963,2439.4,2439.3,26.8446]
[1751028287635,0.8196,2439.5,2439.4,0.8196]
[1751028287837,1.851066,2439.5,2439.4,2.1332]
[1751028288134,1.031466,2439.5,2439.4,2.1332]
[1751028289024,1.031466,2439.5,2439.4,42.9332]
[1751028289227,2.76678,2440.1,2439.7,0.81949]
[1751028289426,0.81949,2439.8,2439.7,3.2078]
[1751028289635,0.81949,2439.8,2439.7,29.5383]
[1751028290738,0.81957,2439.5,2439.4,44.0078]
[1751028290938,2.95695184,2439.8,2439.5,0.81956]
[1751028290939,0.81957,2439.6,2439.5,0.81956]
[1751028291639,0.81957,2439.5,2439.4,77.09737]
[1751028292030,2.77457,2439.7,2439.4,44.0078]
[1751028292231,0.81957,2439.5,2439.4,50.7668]
[1751028292536,0.81957,2439.5,2439.4,76.2738]
[1751028292938,0.81957,2439.5,2439.4,76.9659]
[1751028294536,0.81957,2439.5,2439.4,77.7855]
[1751028294737,0.81957,2439.5,2439.4,36.9855]
[1751028295340,0.81957,2439.5,2439.4,32.263]
[1751028296230,8.21368184,2439.6,2439.1,3.2078]
[1751028296433,2.95695184,2439.2,2438.8,0.81979]
[1751028296640,0.81974,2439.0,2438.9,26.32174]
[1751028296836,0.81974,2439.0,2438.9,27.00494]
[1751028298638,3.2078,2439.3,2438.9,34.14215184]
[1751028298832,2.95695184,2439.5,2439.1,3.2078]
[1751028299034,0.81964,2439.3,2439.2,32.259]
[1751028299843,0.81967,2439.2,2439.1,3.2078]
[1751028300038,0.81974,2439.0,2438.9,0.6832]
[1751028300238,0.81974,2439.0,2438.9,32.9412]
[1751028300839,0.81977,2438.9,2438.8,44.0078]
[1751028301040,0.81977,2438.9,2438.8,77.08561]
[1751028301247,0.81977,2438.9,2438.8,44.82761]
[1751028301440,3.2078,2439.3,2438.8,76.2658]
[1751028301742,0.81974,2439.0,2438.9,0.81974]
[1751028301945,1.50642,2439.1,2439.0,0.81974]
[1751028302245,3.2078,2439.3,2439.2,0.81967]